Cogmind - Beta 13 @@@ ROGUE MODE // 2024.04.07 @ 15:59:37 Player: JackZewap Result: Destroyed by K4-TKF(R) with Subdweller Machine Gun Performance ------------- Evolutions (0) 0 Regions Visited (2) 400 Robots Destroyed (22) 110 Value Destroyed (558) 558 Prototype IDs (0) 0 Alien Tech Used (0) 0 Bonus (-75) -75 TOTAL SCORE: 993 Bonus ------- Friendly Fire -75 Cogmind --------- Core Integrity 0/250 Matter 244/300 Energy 100/100 System Corruption 0% Temperature Cool (0) Movement Core (3400) Ox67 Location -10/Subcaves Parts ------- > --- POWER (1) -------- (None) > --- PROPULSION (2) --- (None) > --- UTILITY (2) ------ Humpback > --- WEAPON (2) ------- Barrage Gun > --- INVENTORY (35) --- Hover Unit Hover Unit Small Storage Unit Humpback Large Matter Pod (150) Makeshift System Shield Peak State ------------ > --- POWER ------------ Makeshift Power Source > --- PROPULSION ------- Makeshift Leg Subdweller Monowheel > --- UTILITY ---------- Subdweller Optics Subdweller Optics > --- WEAPON ----------- Barrage Gun Makeshift Sword > --- INVENTORY -------- Hover Unit Hover Unit Small Storage Unit Scrap Shield [Rating: 21] Favorites ----------- Power Light Ion Engine Engine Light Ion Engine Propulsion Makeshift Leg Leg Makeshift Leg Wheel Compact Wheel Hover Unit Hover Unit Utility Small Storage Unit Device Subdweller Optics Storage Small Storage Unit Processor Signal Interpreter Protection Scrap Shield Weapon Light Assault Rifle Energy Gun Medium Laser Ballistic Gun Light Assault Rifle Launcher Rocket Launcher Impact Weapon Hammer Slashing Weapon Makeshift Sword Build | -11 -10 -10 ------- Run | Yrd Mat Sub Slots Evolved . | . . . Power . | . . . Propulsion . | . . . Utility . | . . . Weapon . | . . . Parts Attached 37 | 6 17 14 Power 6 | 1 3 2 Engine 6 | 1 3 2 Core . | . . . Reactor . | . . . Propulsion 12 | 2 6 4 Treads . | . . . Leg 5 | . 3 2 Wheel 4 | 2 1 1 Hover 3 | . 2 1 Flight . | . . . Utility 6 | 1 1 4 Device 2 | . . 2 Storage 2 | 1 . 1 Processor 1 | . 1 . Hackware . | . . . Protection 1 | . . 1 Artifact . | . . . Weapon 13 | 2 7 4 Energy Gun 1 | 1 . . Energy Cannon . | . . . Ballistic Gun 9 | 1 6 2 Ballistic Cannon . | . . . Launcher 1 | . 1 . Special Weapon . | . . . Impact Weapon 1 | . . 1 Slashing Weapon 1 | . . 1 Piercing Weapon . | . . . Special Melee Weapon . | . . . Unidentified Prototypes . | . . . Parts Lost 5 | . 1 4 Power 1 | . . 1 Propulsion 3 | . 1 2 Utility . | . . . Weapon 1 | . . 1 Highest Loss Streak 2 | . 1 2 To Critical Strikes . | . . . Average Slot Usage (%) 81 | . 96 71 Engine 9 | . 14 6 Leg 10 | . 12 9 Wheel 4 | . 9 . Hover 5 | . 5 4 Device 6 | . . 11 Storage 9 | . 14 6 Processor 6 | . 12 2 Energy Gun 1 | . 3 . Ballistic Gun 18 | . 23 15 Impact Weapon 1 | . . 2 Slashing Weapon 5 | . . 9 Naked Turns . | . . . Heaviest Build 205 | 14 14 205 Greatest Support 32 | 32 32 20 Greatest Overweight (x) 10 | . 3 10 Average Overweight (x) . | . . 1 Largest Inventory Capacity 35 | 8 8 35 Average Capacity 12 | 7 8 14 Most Carried 8 | . 8 7 Average Carried 5 | . 5 4 Final Capacity 35 | 8 8 35 Final Carried 7 | . 4 7 Class Distribution -------------------- 50% | Scavenger-Mutant 30% | Mutant 18% | Hauler-Mutant Dominant Class ---------------- Scavenger-Mutant | -10/Materials Scavenger-Mutant | -10/Subcaves Resources | -11 -10 -10 ----------- Run | Yrd Mat Sub Matter Collected 999 | 182 396 421 Remotely . | . . . Salvage Created 625 | . 355 270 Parts 50 | . 30 20 Haulers Intercepted . | . . . Recyclers Shooed 1 | . 1 . Parts Field Recycled . | . . . Retrieved Matter . | . . . Parts Self-Destructed 9 | . . 9 Prevented . | . . . Kills | -11 -10 -10 ------- Run | Yrd Mat Sub Combat Hostiles Destroyed 18 | . 13 5 Guns 16 | . 11 5 AOE 2 | . 2 . Classes Destroyed 7 | . 4 3 Operator 1 | . 1 . Watcher 1 | . 1 . Swarmer 6 | . 6 . Grunt 7 | . 7 . Sentry 1 | . . 1 Subdweller 4 | . . 4 Zionite 2 | . . 2 Best Kill Streak 5 | . 5 1 Combat Bots Only 5 | . 5 1 Max Kills in Single Turn 2 | . 2 1 Gunslinging 1 | . 1 . Exploded 1 | . 1 . Melee . | . . . Uniques/NPCs Destroyed . | . . . Combat | -11 -10 -10 -------- Run | Yrd Mat Sub Hostile Shots Fired 109 | . 67 42 Missed 28 | . 15 13 Damage Taken 1274 | . 594 680 Core 258 | . 108 150 Absorbed by Shields . | . . . Core Remaining (%) 100 | 100 . . Volleys Fired 86 | . 46 40 Largest 2 | . 2 2 Hottest 70 | . 70 40 Shots Fired 131 | . 88 43 Gun 127 | . 84 43 Cannon . | . . . Launcher 4 | . 4 . Special . | . . . Kinetic 109 | . 66 43 Thermal 18 | . 18 . Explosive 4 | . 4 . Electromagnetic . | . . . Robot Hit Streak 8 | . 8 8 Robot Miss Streak 5 | . 5 1 Penetration Max . | . . . Secondary Targets 2 | . 2 . Max Gunslinging Chain 1 | . 1 . Shots Hit Robots 81 | . 54 27 Core Hits 39 | . 27 12 Critical Kills . | . . . Critical Parts Destroyed 1 | . 1 . Critical Strikes 1 | . 1 . Destroy 1 | . 1 . Melee Attacks 4 | . . 4 Impact 1 | . . 1 Slashing 3 | . . 3 Piercing . | . . . Sneak Attacks . | . . . Combat Hostiles . | . . . Follow-up Attacks . | . . . Damage Inflicted 1093 | . 624 469 Guns 1011 | . 542 469 Cannons . | . . . Explosions 82 | . 82 . Melee . | . . . Ramming . | . . . Kinetic 836 | . 367 469 Thermal 175 | . 175 . Explosive 82 | . 82 . Electromagnetic . | . . . Impact . | . . . Slashing . | . . . Piercing . | . . . Highest Corruption . | . . . Average Corruption . | . . . Corruption Purged . | . . . Corruption Blocked . | . . . Overload Shots . | . . . Overflow Damage . | . . . Projectiles . | . . . Explosions . | . . . Melee . | . . . Knockbacks . | . . . Impact . | . . . Kinetic . | . . . Secondary . | . . . Self-Inflicted Damage 48 | . 48 . Shots 1 | . 1 . Rammed . | . . . Targets Rammed . | . . . Kicked . | . . . Crushed . | . . . Highest Temperature 252 | . 210 252 Average Temperature 67 | . 63 100 Received Heat Transfer 593 | . 234 359 Siege Activations . | . . . Robots Corrupted . | . . . Combat Hostiles . | . . . Parts Fried . | . . . Impact Corruptions . | . . . Robots Melted . | . . . Combat Hostiles . | . . . Parts Melted 3 | . 3 . Heat Transferred 518 | . 518 . Parts Sabotaged . | . . . Parts Stolen . | . . . Parts Stripped . | . . . Power Chain Reactions . | . . . Alert | -11 -10 -10 ------- Run | Yrd Mat Sub Peak Influence 249 | . 249 . Initial . | . . . Average 134 | . 141 . Maximum Alert Level 1 | . 1 . Low Security (%) 72 | 100 70 . Level 1 27 | . 29 . Level 2 . | . . . Level 3 . | . . . Level 4 . | . . . Level 5 . | . . . High Security . | . . . Max Security . | . . . Squads Dispatched 3 | . 3 . Investigation 2 | . 2 . Extermination . | . . . Reinforcement 1 | . 1 . Assault . | . . . Garrison . | . . . Intercept . | . . . Searches Triggered . | . . . Construction Impeded . | . . . Haulers Reinforced . | . . . Active Scanning Responses . | . . . Cargo Convoy Interrupts . | . . . Stealth | -11 -10 -10 --------- Run | Yrd Mat Sub Distress Signals . | . . . Communications Jammed . | . . . Distress Signals . | . . . Times Spotted 28 | . 22 6 Peak Tracking Total 4 | . 4 2 Tactical Retreats 1 | . 1 . Traps | -11 -10 -10 ------- Run | Yrd Mat Sub Traps Triggered 2 | . 1 1 Indirectly . | . . . Trap Hack Attempts . | . . . Triggered . | . . . Disarmed . | . . . Reprogrammed . | . . . Reused . | . . . Traps Extracted . | . . . Installed . | . . . Triggered . | . . . Machines | -11 -10 -10 ---------- Run | Yrd Mat Sub Machines Disabled 3 | . 1 2 Max in Single Turn 1 | . 1 1 Machines Repaired . | . . . Machines Dismantled . | . . . Machines Sabotaged . | . . . Overloaded Fab Kills . | . . . Hacking | -11 -10 -10 --------- Run | Yrd Mat Sub Machines Accessed 6 | . 5 1 Terminals 5 | . 5 . Fabricators . | . . . Repair Stations . | . . . Recycling Units . | . . . Scanalyzers . | . . . Garrison Access . | . . . Total Hacks 14 | . 13 1 Successful 11 | . 10 1 Failed 3 | . 3 . Catastrophic . | . . . Database Lockouts . | . . . Manual 11 | . 11 . Terminals 13 | . 13 . Fabricators . | . . . Repair Stations . | . . . Recycling Units . | . . . Scanalyzers . | . . . Garrison Access . | . . . Terminal Hacks 5 | . 4 1 Record 1 | . . 1 Terminal Index 1 | . 1 . Locate Traps 2 | . 2 . Zone Layout 1 | . 1 . Fabricator Hacks . | . . . Repair Station Hacks . | . . . Recycling Unit Hacks . | . . . Scanalyzer . | . . . Garrison Access Hacks . | . . . Unauthorized Hacks 6 | . 6 . Terminals 6 | . 6 . Assimilate 2 | . 2 . Botnet 4 | . 4 . Fabricators . | . . . Repair Stations . | . . . Recycling Units . | . . . Scanalyzers . | . . . Garrison Access . | . . . Data Cores Recovered . | . . . Used . | . . . Hacking Detections 5 | . 5 . Full Trace Events 1 | . 1 . Feedback Events . | . . . Feedback Blocked . | . . . Robot Schematics Acquired . | . . . Robots Built . | . . . Authchips . | . . . Time . | . . . Total Robot Build Rating . | . . . Part Schematics Acquired . | . . . Parts Built . | . . . Authchips . | . . . Time . | . . . Total Part Build Rating . | . . . Parts Repaired . | . . . Time . | . . . Parts Recycled . | . . . Recycled Matter . | . . . Retrieved Matter . | . . . Retrieved Components . | . . . Parts Scanalyzed . | . . . Part Schematics Acquired . | . . . Parts Damaged . | . . . Bothacking | -11 -10 -10 ------------ Run | Yrd Mat Sub Used RIF Installer . | . . . Robots Hacked . | . . . Non-combat . | . . . Combat . | . . . Robot Hacks Applied . | . . . Relay Couplers Released . | . . . Fabnet Peak Effective % . | . . . Robots Rewired . | . . . Allies Hacked . | . . . Hacks Repelled . | . . . Allies | -11 -10 -10 -------- Run | Yrd Mat Sub Total Allies . | . . . Largest Group . | . . . Highest-Rated Group . | . . . Highest-Rated Ally . | . . . Total Orders . | . . . Ally Attacks . | . . . Total Damage . | . . . Kills . | . . . Allies Corrupted . | . . . Allies Melted . | . . . Intel | -11 -10 -10 ------- Run | Yrd Mat Sub Robot Analysis Total . | . . . Derelict Logs Recovered 1 | . . 1 Drone Launches . | . . . Drone Recoveries . | . . . Exploration | -11 -10 -10 ------------- Run | Yrd Mat Sub Turns Passed 2427 | 52 941 1434 Spaces Moved 1313 | 44 566 703 Core 3 | 2 1 . Treads . | . . . Legs 627 | . 237 390 Wheels 363 | 42 242 79 Hover 320 | . 86 234 Flight . | . . . Fastest Speed 50 | 50 56 56 Average Speed 145 | 97 101 183 Slowest Speed 840 | 100 200 840 Overloaded Moves . | . . . Propulsion Burnouts . | . . . Robots Hopped . | . . . Cave-ins Triggered . | . . . Exploration Rate (%) 36 | 3 78 29 Regions Visited 2 Branch Regions 1 Pre-discovered Areas 1 | . . 1 Known Exits Taken 1 | . 1 . Unknown Exits Taken 1 | 1 . . Scrap Searched 1 | . . 1 Spaces Dug 3 | . . 3 Terrain Destroyed 41 | . 38 3 Melee 3 | . . 3 Projectile . | . . . AOE 38 | . 38 . Terrain Rammed . | . . . Walls Destroyed . | . . . Machines Disabled . | . . . Actions | -11 -10 -10 --------- Run | Yrd Mat Sub Total 1709 | 49 854 806 Wait 217 | . 199 18 Move 1311 | 43 565 703 Hop . | . . . Pick Up 14 | . 8 6 Fast Attach 21 | 6 6 9 Attach 7 | . 4 3 Detach 10 | . 5 5 Swap 9 | . 7 2 Drop 28 | . 14 14 Fire 86 | . 46 40 Melee 4 | . . 4 Ram . | . . . Kick . | . . . Crush . | . . . Escape Stasis . | . . . Rewire . | . . . Trap . | . . . Miscellaneous 2 | . . 2 Route ------- -11/Scrapyard -10/Materials (discovered 5 exits: *Mat x2 / *Min x2 / *Sub) -10/Subcaves History --------- Turn | Location | Event 29 | -11/Scrapyard | Discovered new exit (range 13) 53 | -11/Scrapyard | Entered Materials 231 | -10/Materials | Discovered new exit (range 15) 246 | -10/Materials | Identified exit to Mines 328 | -10/Materials | Discovered new exit (range 5) 332 | -10/Materials | Identified exit to Materials 564 | -10/Materials | Discovered exit to Materials (range 16) 691 | -10/Materials | Discovered exit to Mines (range 15) 937 | -10/Materials | Build established: Scavenger-Mutant 964 | -10/Materials | Discovered new exit (range 6) 992 | -10/Materials | Identified exit to Subcaves 994 | -10/Materials | Entered Subcaves 1003 | -10/Subcaves | Learned 8 Materials zone layouts 1075 | -10/Subcaves | Core integrity fell below 50% 1137 | -10/Subcaves | Shifting Twisted Machinery released Barrage Gun 1138 | -10/Subcaves | Shifting Twisted Machinery released Sub. Monowheel 1198 | -10/Subcaves | Learned location of Zion (-6) 1198 | -10/Subcaves | Met a Zionite searching for "candidates" 1412 | -10/Subcaves | Visited Clippyterm 1763 | -10/Subcaves | A swath of the cavern ceiling suddenly collapsed 2293 | -10/Subcaves | Build established: Hauler-Mutant 2415 | -10/Subcaves | Core integrity fell below 20% 2428 | -10/Subcaves | Destroyed by K4-TKF(R) with Subdweller Machine Gun Last Messages --------------- 01652_ Acquired 38 matter. 01653_ Acquired 9 matter. 01656_ Acquired 45 matter. 01676_ Acquired 38 matter. 01696_ Subatomizers dissect the Sub. Monowheel. A swath of the cavern ceiling suddenly collapses. 01852_ Acquired 14 matter. 01854_ The unstable cave ceiling collapses. 01855_ Acquired 6 matter. 01862_ Sub. Optics shoots sparks and powers down. 01862_ Dropped Mak. Leg. 01862_ Dropped Broken Sub. Optics. 01863_ Acquired Mak. Leg. 01981_ Acquired 10 matter. 01987_ Dropped Sub. Optics. 01987_ Acquired Humpback. 02396_ Critical hit (Meltdown: +260). 02408_ CL-4Q2(R) destroyed. 02410_ Mak. Leg destroyed. 02416_ Mak. Sword destroyed. Map ----- +----------------------------------------------------+ | ?????????????????????????????????????????????????? | | ?????????????????????????????????????????????????? | | ?????????????????????????????????????????????????? | | ?????????????????????????????????????????????????? | | ?????????????????????????????????????????????????? | | ?????????????????????????????????????????????????? | | ?????????????????????????????????????????????????? | | ?????????????????????????????????????????????????? | | ?????????????????????????????????????????????????? | | ?????????????????????????????????????????????????? | | ?????????????????????????????????????????????????? | | ?????????????????????????????????????????????????? | | ?????????????????????????????????????????????????? | | ??????????????? ??#??????????????????????????????? | | ?????????????? ### ?????????????????????????????? | | ??????????????? ?????????????????????????????? | | ???????????????? ??????????????? ???????????? | | ????????????????# ?????????????? ???????????? | | ?????????????????# ???????????? "????????????? | | ?????????????????? ??????????? #????????????? | | ??????????????????? ?????????? #?????????????? | | ???????????????###?? ###????? #?????????????? | | ????????????#### ##??# ##??? #?????????????? | | ????????????# #?## ### #??????????????? | | ?????????????# #??# =% #???????????????? | | ?????????????# #### @ R #??####??????????? | | ????????????## #### #??#""##?????????? | | ????????????# #;##????????"" #?????????? | | ????????????# #########???# ##????????? | | ????????????# ### #???# ##???????? | | ????????????# ### #????# ????????? | | ????????????## ## ## ####?# #?????????? | | ?????????????# ## ##"### #?????????? | | ?????????????#### ## ## ##????????? | | ????????????????# " ##???????? | | ????????????????#### ##??????? | | ???????????????????### #??????? | | ????????????????????## #??????? | | ????????????????????# !! #??????? | | ????????????????????# % ## ###### #?????? | | ????????????????????# ## = ####?????? ????? | | ????????????????????## ### ## ##??????????? ??? | | ????????????????????## ##?#######?????????????##?? | | ????????????????????# #????????????????????????? | | ????????????????????## #????????????????????????? | | ?????#??????????????## ##????????????????????????? | | ??#??# ????????????## #????????????????????????? | | ?"""## ?????????#### #????????????????????????? | | ??""""" ????????# ##????????????????????????? | | ???? ????????# # #?????????????????????????? | +----------------------------------------------------+ Best States ------------- Heat Dissipation 25 Energy Generation 15 Energy Capacity 265 Matter Stores 300 Matter Capacity 300 Sight Range 21 Terrain Scan Density 10 Armor Coverage 800 Evasion (%) 55 Item Schematics ----------------- None Robot Schematics ------------------ None Fabricated ------------ Nothing Alien Tech Used ----------------- None Achievements -------------- None Challenges ------------ None Game ------ Seed HelicalBiocellBrace Manual? 0 Play Time 00:20:06 Cumulative 25.2 hours Start 2024.04.07 @ 15:43:30 End 2024.04.07 @ 15:59:37 Sessions 1 Manual Loads 0 Difficulty Rogue Special Mode None Game No. 29 Rogue 23 Adventurer 6 Explorer 0 Win Type - Total 0 Types 0/0/0/0/0/0/0/0/0 Lore% 17 Gallery% 30 Achievement% 21 Wizard Run 0 Options --------- Layout 0 ASCII 0 Keyboard 1 Movement Numpad Keybinds 0 Fullscreen 1 Font 18/SmallcapsGlow Map View 76x50 Zoom Use 0% Tactical HUD 1 Map Filters NONE Filters NONE Steam 1 RUN: a292f25e-e916-4af5-8d79-ec64734e60d9